Cogmind - Beta 10.2 @@@ ROGUE MODE // 2021.12.09 @ 16:31:01 Player: Happytimes Result: Self-destructed Performance ------------- Evolutions (1) 500 Regions Visited (3) 600 Robots Destroyed (18) 90 Value Destroyed (434) 434 Prototype IDs (0) 0 Alien Tech Used (0) 0 Bonus (0) 0 TOTAL SCORE: 1624 Bonus ------- None Cogmind --------- Core Integrity 400/400 Matter 298/300 Energy 250/250 System Corruption 0% Temperature Cool (0) Movement Walking (120) Location -9/Materials Parts ------- > --- POWER (1) -------- Ion Engine > --- PROPULSION (3) --- Aluminum Leg Aluminum Leg > --- UTILITY (3) ------ Medium Storage Unit Signal Interpreter > --- WEAPON (2) ------- Light Assault Rifle Mining Laser > --- INVENTORY (8) ---- Light Nuclear Core Light Nuclear Core Aluminum Leg Hover Unit Hover Unit Hover Unit Small Storage Unit Visual Processing Unit Peak State ------------ > --- POWER ------------ Ion Engine > --- PROPULSION ------- Aluminum Leg Aluminum Leg > --- UTILITY ---------- Medium Storage Unit Signal Interpreter > --- WEAPON ----------- Particle Gun Assault Rifle > --- INVENTORY -------- Light Nuclear Core Aluminum Leg Hover Unit Hover Unit Hover Unit Small Storage Unit Visual Processing Unit Mining Laser [Rating: 9] Favorites ----------- Power Ion Engine Engine Ion Engine Propulsion Aluminum Leg Leg Aluminum Leg Utility Medium Storage Unit Device Sensor Array Storage Medium Storage Unit Processor Signal Interpreter Weapon Assault Rifle Energy Gun EM Pulse Gun Ballistic Gun Assault Rifle Special Weapon Mining Laser Build | -11 -10 -10 -9 ------- Run | Scr Mat Min Mat Slots Evolved 2 | . . . 2 Power . | . . . . Propulsion 1 | . . . 1 Utility 1 | . . . 1 Weapon . | . . . . Parts Attached 22 | 6 6 10 . Power 3 | 1 1 1 . Engine 3 | 1 1 1 . Core . | . . . . Reactor . | . . . . Propulsion 8 | 2 2 4 . Treads . | . . . . Leg 8 | 2 2 4 . Wheel . | . . . . Hover . | . . . . Flight . | . . . . Utility 4 | 1 3 . . Device 1 | . 1 . . Storage 2 | 1 1 . . Processor 1 | . 1 . . Hackware . | . . . . Protection . | . . . . Artifact . | . . . . Weapon 7 | 2 . 5 . Energy Gun 4 | 1 . 3 . Energy Cannon . | . . . . Ballistic Gun 2 | 1 . 1 . Ballistic Cannon . | . . . . Launcher . | . . . . Special Weapon 1 | . . 1 . Impact Weapon . | . . . . Slashing Weapon . | . . . . Piercing Weapon . | . . . . Special Melee Weapon . | . . . . Unidentified Prototypes . | . . . . Parts Lost 5 | . 2 3 . Power . | . . . . Propulsion . | . . . . Utility 1 | . 1 . . Weapon 4 | . 1 3 . Highest Loss Streak 2 | . 1 2 . Average Slot Usage (%) 94 | . 90 98 77 Engine 13 | . 14 14 11 Leg 27 | . 28 28 22 Device 1 | . 2 . . Storage 15 | . 18 14 11 Processor 8 | . . 14 11 Energy Gun 12 | . 11 13 . Ballistic Gun 12 | . 14 11 11 Special Weapon 1 | . . 2 11 Naked Turns . | . . . . Heaviest Build 19 | 11 19 18 15 Greatest Support 20 | 20 20 20 20 Greatest Overweight (x) . | . . . . Average Overweight (x) . | . . . . Largest Inventory Capacity 10 | 6 10 8 8 Average Capacity 8 | 5 8 8 8 Most Carried 8 | 4 8 8 8 Average Carried 6 | . 4 7 8 Final Capacity 8 | 6 8 8 8 Final Carried 8 | . 8 8 8 Class Distribution -------------------- 62% | Scavenger-Mutant 37% | Mutant Dominant Class ---------------- Mutant | -10/Materials Scavenger-Mutant | -10/Mines Scavenger-Mutant | -9/Materials Resources | -11 -10 -10 -9 ----------- Run | Scr Mat Min Mat Matter Collected 516 | 233 140 143 . Remotely . | . . . . Salvage Created 719 | . 462 257 . Parts 43 | . 26 17 . Haulers Intercepted 2 | . 2 . . Recyclers Shooed . | . . . . Parts Field Recycled . | . . . . Retrieved Matter . | . . . . Parts Self-Destructed . | . . . . Prevented . | . . . . Kills | -11 -10 -10 -9 ------- Run | Scr Mat Min Mat Combat Hostiles Destroyed 14 | . 7 7 . Guns 14 | . 7 7 . Classes Destroyed 5 | . 5 . . Hauler 2 | . 2 . . Recycler 1 | . 1 . . Watcher 1 | . 1 . . Swarmer 5 | . 2 3 . Grunt 9 | . 5 4 . Best Kill Streak 4 | . 3 4 . Combat Bots Only 4 | . 2 4 . Max Kills in Single Turn 2 | . 1 2 . Gunslinging 1 | . . 1 . Exploded . | . . . . Melee . | . . . . Uniques/NPCs Destroyed . | . . . . Combat | -11 -10 -10 -9 -------- Run | Scr Mat Min Mat Damage Taken 653 | . 354 299 . Core 119 | . 48 71 . Absorbed by Shields . | . . . . Core Remaining (%) 76 | 100 . 52 . Volleys Fired 51 | . 31 18 2 Largest 2 | . 2 2 1 Hottest 105 | . 60 105 20 Shots Fired 91 | . 57 32 2 Gun 91 | . 57 32 2 Cannon . | . . . . Launcher . | . . . . Special . | . . . . Kinetic 40 | . 31 7 2 Thermal 14 | . . 14 . Explosive . | . . . . Electromagnetic 37 | . 26 11 . Robot Hit Streak 13 | . 13 6 8 Robot Miss Streak 3 | . 3 2 . Penetration Max . | . . . . Secondary Targets 1 | . . 1 . Max Gunslinging Chain 1 | . . 1 . Shots Hit Robots 63 | . 39 22 2 Core Hits 31 | . 20 11 . Critical Hits . | . . . . Critical Kills . | . . . . Critical Parts Destroyed . | . . . . Melee Attacks . | . . . . Impact . | . . . . Slashing . | . . . . Piercing . | . . . . Sneak Attacks . | . . . . Combat Hostiles . | . . . . Follow-up Attacks . | . . . . Damage Inflicted 886 | . 584 288 14 Guns 831 | . 529 288 14 Cannons . | . . . . Explosions 55 | . 55 . . Melee . | . . . . Ramming . | . . . . Kinetic 308 | . 266 28 14 Thermal 218 | . 55 163 . Explosive . | . . . . Electromagnetic 360 | . 263 97 . Impact . | . . . . Slashing . | . . . . Piercing . | . . . . Highest Corruption . | . . . . Average Corruption . | . . . . Corruption Purged . | . . . . Overload Shots . | . . . . Overflow Damage 8 | . 8 . . Projectiles . | . . . . Explosions 8 | . 8 . . Melee . | . . . . Knockbacks . | . . . . Impact . | . . . . Kinetic . | . . . . Secondary . | . . . . Self-Inflicted Damage 46 | . 46 . . Shots 1 | . 1 . . Rammed . | . . . . Targets Rammed . | . . . . Kicked . | . . . . Crushed . | . . . . Highest Temperature 307 | . 63 307 . Average Temperature 78 | . 31 110 . Received Heat Transfer 276 | . 147 129 . Siege Activations . | . . . . Robots Corrupted . | . . . . Combat Hostiles . | . . . . Parts Fried . | . . . . Impact Corruptions . | . . . . Robots Melted . | . . . . Combat Hostiles . | . . . . Parts Melted 2 | . . 2 . Heat Transferred 508 | . 100 408 . Parts Sabotaged . | . . . . Parts Stolen . | . . . . Parts Stripped . | . . . . Power Chain Reactions 1 | . 1 . . Missiles Intercepted . | . . . . Alert | -11 -10 -10 -9 ------- Run | Scr Mat Min Mat Peak Influence 195 | . 195 115 44 Initial 44 | . . . 44 Average 61 | . 84 50 44 Maximum Alert Level . | . . . . Low Security (%) 100 | 100 100 100 100 Level 1 . | . . . . Level 2 . | . . . . Level 3 . | . . . . Level 4 . | . . . . Level 5 . | . . . . High Security . | . . . . Max Security . | . . . . Squads Dispatched 2 | . 1 . 1 Investigation 1 | . 1 . . Extermination . | . . . . Reinforcement 1 | . . . 1 Assault . | . . . . Garrison . | . . . . Intercept . | . . . . Construction Impeded . | . . . . Haulers Reinforced . | . . . . Stealth | -11 -10 -10 -9 --------- Run | Scr Mat Min Mat Distress Signals 1 | . 1 . . Communications Jammed . | . . . . Distress Signals . | . . . . Times Spotted 20 | . 9 10 1 Peak Tracking Total 4 | . 3 4 . Tactical Retreats 2 | . . 2 . Traps | -11 -10 -10 -9 ------- Run | Scr Mat Min Mat Traps Triggered 1 | . 1 . . Indirectly . | . . . . Trap Hack Attempts . | . . . . Triggered . | . . . . Disarmed . | . . . . Reprogrammed . | . . . . Reused . | . . . . Traps Extracted . | . . . . Installed . | . . . . Triggered . | . . . . Machines | -11 -10 -10 -9 ---------- Run | Scr Mat Min Mat Machines Disabled . | . . . . Max in Single Turn . | . . . . Machines Sabotaged . | . . . . Garrisons Compromised . | . . . . Overloaded Fab Kills . | . . . . Fab Network Shutdowns . | . . . . Hacking | -11 -10 -10 -9 --------- Run | Scr Mat Min Mat Machines Accessed 1 | . 1 . . Terminals 1 | . 1 . . Fabricators . | . . . . Repair Stations . | . . . . Recycling Units . | . . . . Scanalyzers . | . . . . Garrison Access . | . . . . Total Hacks 2 | . 2 . . Successful 1 | . 1 . . Failed 1 | . 1 . . Catastrophic . | . . . . Database Lockouts . | . . . . Manual . | . . . . Terminals 2 | . 2 . . Fabricators . | . . . . Repair Stations . | . . . . Recycling Units . | . . . . Scanalyzers . | . . . . Garrison Access . | . . . . Terminal Hacks 1 | . 1 . . Emergency Access Points 1 | . 1 . . Fabricator Hacks . | . . . . Repair Station Hacks . | . . . . Recycling Unit Hacks . | . . . . Scanalyzer . | . . . . Garrison Access Hacks . | . . . . Unauthorized Hacks . | . . . . Terminals . | . . . . Fabricators . | . . . . Repair Stations . | . . . . Recycling Units . | . . . . Scanalyzers . | . . . . Garrison Access . | . . . . Data Cores Recovered . | . . . . Used . | . . . . Hacking Detections 1 | . 1 . . Full Trace Events . | . . . . Feedback Events . | . . . . Feedback Blocked . | . . . . Robot Schematics Acquired . | . . . . Robots Built . | . . . . Matter . | . . . . Time . | . . . . Total Robot Build Rating . | . . . . Part Schematics Acquired . | . . . . Parts Built . | . . . . Matter . | . . . . Time . | . . . . Total Part Build Rating . | . . . . Parts Repaired . | . . . . Time . | . . . . Parts Recycled . | . . . . Recycled Matter . | . . . . Retrieved Matter . | . . . . Retrieved Components . | . . . . Parts Scanalyzed . | . . . . Part Schematics Acquired . | . . . . Parts Damaged . | . . . . Bothacking | -11 -10 -10 -9 ------------ Run | Scr Mat Min Mat Used RIF Installer . | . . . . Robots Hacked . | . . . . Non-combat . | . . . . Combat . | . . . . Robot Hacks Applied . | . . . . Relay Couplers Released . | . . . . Robots Rewired . | . . . . Allies Hacked . | . . . . Hacks Repelled . | . . . . Allies | -11 -10 -10 -9 -------- Run | Scr Mat Min Mat Total Allies . | . . . . Largest Group . | . . . . Highest-Rated Group . | . . . . Highest-Rated Ally . | . . . . Total Orders . | . . . . Ally Attacks . | . . . . Total Damage . | . . . . Kills . | . . . . Allies Corrupted . | . . . . Allies Melted . | . . . . Intel | -11 -10 -10 -9 ------- Run | Scr Mat Min Mat Robot Analysis Total . | . . . . Derelict Logs Recovered 1 | . . 1 . Drone Launches . | . . . . Drone Recoveries . | . . . . Exploration | -11 -10 -10 -9 ------------- Run | Scr Mat Min Mat Turns Passed 1097 | 44 428 599 26 Spaces Moved 694 | 40 240 396 18 Core 20 | 20 . . . Treads . | . . . . Legs 674 | 20 240 396 18 Wheels . | . . . . Hover . | . . . . Flight . | . . . . Fastest Speed 50 | 50 120 120 120 Average Speed 117 | 85 120 120 120 Slowest Speed 120 | 120 120 120 120 Overloaded Moves . | . . . . Propulsion Burnouts . | . . . . Robots Hopped . | . . . . Cave-ins Triggered . | . . . . Exploration Rate (%) 30 | 3 28 86 5 Regions Visited 3 Branch Regions 1 Pre-discovered Areas 1 | . . 1 . Known Exits Taken 2 | . 1 1 . Unknown Exits Taken 1 | 1 . . . Scrap Searched 1 | . . 1 . Spaces Dug . | . . . . Terrain Destroyed 9 | . 9 . . Melee . | . . . . Projectile . | . . . . AOE 9 | . 9 . . Terrain Rammed . | . . . . Walls Destroyed . | . . . . Machines Disabled . | . . . . Actions | -11 -10 -10 -9 --------- Run | Scr Mat Min Mat Total 878 | 49 322 487 20 Wait 87 | . 32 55 . Move 691 | 39 239 395 18 Hop . | . . . . Pick Up 19 | 4 11 4 . Fast Attach 6 | 2 1 3 . Attach 7 | 4 1 2 . Detach . | . . . . Swap 9 | . 4 5 . Drop 8 | . 3 5 . Fire 51 | . 31 18 2 Melee . | . . . . Ram . | . . . . Kick . | . . . . Crush . | . . . . Escape Stasis . | . . . . Rewire . | . . . . Trap . | . . . . Miscellaneous . | . . . . Route ------- -11/Scrapyard -10/Materials -10/Mines -9/Materials (discovered 1 exit: Mat) History --------- Turn | Location | Event 4 | -11/Scrapyard | Discovered new exit (range 15) 45 | -11/Scrapyard | Entered Materials 307 | -10/Materials | Build established: Mutant 417 | -10/Materials | Discovered new exit (range 13) 472 | -10/Materials | Identified exit to Mines 473 | -10/Materials | Entered Mines 478 | -10/Mines | Met a Derelict bent on vengeance 674 | -10/Mines | Learned location of Storage (-8) 731 | -10/Mines | Build established: Scavenger-Mutant 867 | -10/Mines | Learned 2 Materials zone layouts 1060 | -10/Mines | Discovered new exit (range 8) 1069 | -10/Mines | Identified exit to Materials 1072 | -10/Mines | Entered Materials 1072 | -9/Materials | Evolved 2 slots: Propulsion x1, Utility x1 1073 | -9/Materials | Identified exit to Materials 1098 | -9/Materials | Self-destructed Last Messages --------------- 00984_ K-01 Serf collects debris. 00984_ Acquired Ion Engine. 00987_ Acquired 32 matter. 00988_ K-01 Serf collects debris. 00989_ Dropped Aluminum Leg. 00991_ Dropped Ion Engine. 00993_ Acquired Lgt. Nuclear Core. 00995_ Acquired 10 matter. 00995_ K-01 Serf collects debris. 01060_ EXIT=FOUND 01069_ EXIT=IDENTIFIED: MATERIALS PARAMETERS=PROPULSION_1,UTILITY_1 LOCATION=MATERIALS GOAL=ESCAPE Loading 2 Materials zones... 01090_ O-16 Technician: "IFF HANDSHAKE FAILED. SECURING TERMINAL." 01090_ O-16 Technician uses terminal to summon reinforcements. 01090_ ALERT: Hostiles spotted, dispatching reinforcements to Terminal M001. 01090_ O-16 Technician locks terminal. Map ----- +----------------------------------------------------+ | ?????????????????????????????????????? | | ?????????????????????????????????????? | | ?????????????????????????????????????? | | ?????????????????????????????????????? | | ?????????????????????????????????????? | | ?????????????????????????????????????? | | ?????????????????????????????????????? | | ?????????????????????????????????????? | | ?????????????????????????????????????? | | ?????????????????????????????????????? | | ????????????? s?????????????????????? | | ????????????? "????????????????????? | | ????????????? "????????????????????? | | ????????????? ""???????????????????? | | ????????????? o????????????????????? | | ????????????? ???? ???????????????? | | ????????????? """ "???????????????? | | ????????????# """ "???????????????? | | ????????????# """ ????????????????? | | ????????????" ????????????????? | | ????????????T ?????????????????? | | ????????????" """ #?????????? | | ???#######??# """ ?????????? | | ???# #### """ ????????? | | ???# u ????????? | | ???# @ "T"????????????? | | ???# """????????????? | | ???# ################????????????? | | ???## ##########???????????????????? | | ????# # #???????????????????? | | ????# # #???????????????????? | | ????# + ] #???????????????????? | | ????# # #???????????????????? | | ????# # #???????????????????? | | ????# #? #???????????????????? | | ????#####? #???????????????????? | | ??????????? #???????????????????? | | ??????????? #???????????????????? | | ????????????######???????????????????? | | ?????????????????????????????????????? | | ?????????????????????????????????????? | | ?????????????????????????????????????? | | ?????????????????????????????????????? | | ?????????????????????????????????????? | | ?????????????????????????????????????? | | ?????????????????????????????????????? | | ?????????????????????????????????????? | | ?????????????????????????????????????? | | ?????????????????????????????????????? | | ?????????????????????????????????????? | +----------------------------------------------------+ Best States ------------- Heat Dissipation 28 Energy Generation 10 Energy Capacity 250 Matter Stores 300 Matter Capacity 300 Sight Range 16 Robot Scan Range 10 Terrain Scan Density 10 Evasion (%) 50 Item Schematics ----------------- None Robot Schematics ------------------ None Fabricated ------------ Nothing Alien Tech Used ----------------- None Achievements -------------- None Challenges ------------ None Game ------ Seed HeatLinearThrusters Manual? 0 Play Time 00:09:00 Cumulative 25.2 hours Start 2021.12.09 @ 11:37:43 End 2021.12.09 @ 16:31:01 Sessions 1 Manual Loads 0 Difficulty Rogue Special Mode None Game No. 77 Rogue 77 Adventurer 0 Explorer 0 Win Type - Total 0 Types 0/0/0/0/0/0/0/0/0 Lore% 28 Gallery% 42 Achievement% 30 Wizard Run 0 Options --------- ASCII 0 Keyboard 0 Movement Mouse Keybinds 0 Fullscreen 1 Font 18/SmallcapsGlow Map View 76x50 Tactical HUD 1 Map Filters NONE Filters NONE Steam 1 RUN: 9315719b-444d-4d3a-9ab0-0db320ce5b50